[Event "Titled Tuesday Blitz June 22 2021"]
[White "Zhigalko, Sergei"]
[Black "Paragua, Mark"]
[WhiteFideId "13502956"]
[BlackFideId "5201241"]
[WhiteElo "2662"]
[BlackElo "2493"]
[Result "0-1"]
[Round "10"]
[TimeControl "180+1"]
[Date "2021.06.22"]
[WhiteClock "0:00:03"]
[BlackClock "0:00:08"]

1. e4 {[%clk 0:03:00]}  c5 {[%clk 0:02:56]} 2. Nf3 {[%clk 0:03:01]}  d6 {[%clk 0:02:56]} 3. d4 {[%clk 0:03:01]}  cxd4 {[%clk 0:02:57]} 4. Qxd4 {[%clk 0:03:02]}  Nf6 {[%clk 0:02:58]} 5. Nc3 {[%clk 0:03:02]}  Nc6 {[%clk 0:02:55]} 6. Bb5 {[%clk 0:03:02]}  Bd7 {[%clk 0:02:56]} 7. Bxc6 {[%clk 0:03:02]}  Bxc6 {[%clk 0:02:57]} 8. Bg5 {[%clk 0:03:02]}  e6 {[%clk 0:02:52]} 9. O-O-O {[%clk 0:03:02]}  Be7 {[%clk 0:02:52]} 10. Rhe1 {[%clk 0:03:02]}  h6 {[%clk 0:02:51]} 11. Bh4 {[%clk 0:03:02]}  Qa5 {[%clk 0:02:49]} 12. Kb1 {[%clk 0:03:01]}  O-O {[%clk 0:02:47]} 13. Qd2 {[%clk 0:03:01]}  Rfd8 {[%clk 0:02:33]} 14. Nd4 {[%clk 0:02:47]}  Rac8 {[%clk 0:02:29]} 15. Nd5 {[%clk 0:02:38]}  Qxd2 {[%clk 0:02:25]} 16. Nxe7+ {[%clk 0:02:37]}  Kf8 {[%clk 0:02:25]} 17. Ng6+ {[%clk 0:01:53]}  fxg6 {[%clk 0:02:25]} 18. Rxd2 {[%clk 0:01:54]}  Kf7 {[%clk 0:02:18]} 19. f3 {[%clk 0:01:53]}  e5 {[%clk 0:02:10]} 20. Ne2 {[%clk 0:01:47]}  g5 {[%clk 0:01:46]} 21. Bf2 {[%clk 0:01:47]}  d5 {[%clk 0:01:37]} 22. exd5 {[%clk 0:01:25]}  Rxd5 {[%clk 0:01:22]} 23. Rxd5 {[%clk 0:01:23]}  Nxd5 {[%clk 0:01:23]} 24. Bxa7 {[%clk 0:00:49]}  b6 {[%clk 0:01:21]} 25. Nc1 {[%clk 0:00:22]}  Ra8 {[%clk 0:00:35]} 26. Nd3 {[%clk 0:00:22]}  Bb7 {[%clk 0:00:21]} 27. c4 {[%clk 0:00:18]}  Rxa7 {[%clk 0:00:19]} 28. cxd5 {[%clk 0:00:16]}  Bxd5 {[%clk 0:00:20]} 29. Nxe5+ {[%clk 0:00:12]}  Kf6 {[%clk 0:00:20]} 30. b3 {[%clk 0:00:10]}  h5 {[%clk 0:00:19]} 31. Nd3 {[%clk 0:00:08]}  g4 {[%clk 0:00:13]} 32. Nf4 {[%clk 0:00:08]}  Bf7 {[%clk 0:00:13]} 33. fxg4 {[%clk 0:00:07]}  hxg4 {[%clk 0:00:14]} 34. g3 {[%clk 0:00:06]}  g5 {[%clk 0:00:15]} 35. Ng2 {[%clk 0:00:03]}  Bg6+ {[%clk 0:00:14]} 36. Kb2 {[%clk 0:00:04]}  Rh7 {[%clk 0:00:12]} 37. Rf1+ {[%clk 0:00:02]}  Ke5 {[%clk 0:00:12]} 38. Re1+ {[%clk 0:00:02]}  Be4 {[%clk 0:00:11]} 39. Ne3 {[%clk 0:00:03]}  Rxh2+ {[%clk 0:00:11]} 40. Ka3 {[%clk 0:00:03]}  Kd4 {[%clk 0:00:06]} 41. Nxg4 {[%clk 0:00:03]}  Rg2 {[%clk 0:00:05]} 42. Rd1+ {[%clk 0:00:04]}  Kc3 {[%clk 0:00:04]} 43. Rc1+ {[%clk 0:00:03]}  Kd2 {[%clk 0:00:03]} 44. Rc4 {[%clk 0:00:03]}  Bd3 {[%clk 0:00:01]} 45. Rb4 {[%clk 0:00:04]}  Rxg3 {[%clk 0:00:01]} 46. Ne5 {[%clk 0:00:04]}  Be2 {[%clk 0:00:01]} 47. Rxb6 {[%clk 0:00:03]}  g4 {[%clk 0:00:02]} 48. Rd6+ {[%clk 0:00:03]}  Ke3 {[%clk 0:00:02]} 49. Re6 {[%clk 0:00:03]}  Kd4 {[%clk 0:00:02]} 50. Kb4 {[%clk 0:00:02]}  Re3 {[%clk 0:00:02]} 51. Nc6+ {[%clk 0:00:02]}  Kd3 {[%clk 0:00:02]} 52. Rg6 {[%clk 0:00:01]}  g3 {[%clk 0:00:01]} 53. Kc5 {[%clk 0:00:01]}  Kd2 {[%clk 0:00:01]} 54. Rg5 {[%clk 0:00:01]}  Bf1 {[%clk 0:00:02]} 55. Nd4 {[%clk 0:00:02]}  g2 {[%clk 0:00:02]} 56. a4 {[%clk 0:00:02]}  Rc3+ {[%clk 0:00:02]} 57. Kb4 {[%clk 0:00:01]}  Rd3 {[%clk 0:00:03]} 58. Kc5 {[%clk 0:00:01]}  Rc3+ {[%clk 0:00:04]} 59. Kd6 {[%clk 0:00:01]}  Ke1 {[%clk 0:00:04]} 60. Ke5 {[%clk 0:00:01]}  Kf2 {[%clk 0:00:04]} 61. a5 {[%clk 0:00:01]}  g1=Q {[%clk 0:00:05]} 62. Rxg1 {[%clk 0:00:02]}  Kxg1 {[%clk 0:00:05]} 63. Kd5 {[%clk 0:00:02]}  Kf2 {[%clk 0:00:06]} 64. b4 {[%clk 0:00:01]}  Ke3 {[%clk 0:00:06]} 65. b5 {[%clk 0:00:02]}  Bg2+ {[%clk 0:00:07]} 66. Ke5 {[%clk 0:00:01]}  Rc5+ {[%clk 0:00:07]} 67. Kd6 {[%clk 0:00:02]}  Kxd4 {[%clk 0:00:08]} 68. a6 {[%clk 0:00:01]}  Rxb5 {[%clk 0:00:08]} 69. a7 {[%clk 0:00:02]}  Ra5 {[%clk 0:00:08]} 70. a8=Q {[%clk 0:00:03]}  Rxa8 {[%clk 0:00:08]} 0-1


[Site "https://www.chess.com"]

[Event "Titled Tuesday Blitz June 22 2021"]
[White "Abrashkin, Boris"]
[Black "Kabanova, Ekaterina"]
[WhiteFideId "4120582"]
[BlackFideId "24112917"]
[WhiteElo "2604"]
[BlackElo "2164"]
[Result "1-0"]
[Round "11"]
[TimeControl "180+1"]
[Date "2021.06.22"]
[WhiteClock "0:00:17"]
[BlackClock "0:00:02"]

1. d4 {[%clk 0:03:00]}  c5 {[%clk 0:03:00]} 2. d5 {[%clk 0:03:01]}  e5 {[%clk 0:02:58]} 3. e4 {[%clk 0:03:01]}  a6 {[%clk 0:02:58]} 4. c4 {[%clk 0:02:56]}  d6 {[%clk 0:02:58]} 5. Nc3 {[%clk 0:02:56]}  Ne7 {[%clk 0:02:58]} 6. Bd3 {[%clk 0:02:56]}  Ng6 {[%clk 0:02:58]} 7. Nf3 {[%clk 0:02:56]}  Be7 {[%clk 0:02:58]} 8. O-O {[%clk 0:02:56]}  Bg4 {[%clk 0:02:58]} 9. a3 {[%clk 0:02:51]}  O-O {[%clk 0:02:58]} 10. h3 {[%clk 0:02:49]}  Bxf3 {[%clk 0:02:58]} 11. Qxf3 {[%clk 0:02:50]}  Bg5 {[%clk 0:02:56]} 12. b4 {[%clk 0:02:46]}  Nd7 {[%clk 0:02:54]} 13. g3 {[%clk 0:02:40]}  Bxc1 {[%clk 0:02:49]} 14. Rfxc1 {[%clk 0:02:41]}  Qg5 {[%clk 0:02:49]} 15. Bf1 {[%clk 0:02:33]}  Rac8 {[%clk 0:02:22]} 16. Rab1 {[%clk 0:02:28]}  cxb4 {[%clk 0:02:16]} 17. axb4 {[%clk 0:02:28]}  f5 {[%clk 0:02:07]} 18. exf5 {[%clk 0:02:26]}  Rxf5 {[%clk 0:02:06]} 19. Qg2 {[%clk 0:02:22]}  Rcf8 {[%clk 0:01:46]} 20. Rc2 {[%clk 0:02:04]}  Qe7 {[%clk 0:01:42]} 21. Bd3 {[%clk 0:02:03]}  Rf3 {[%clk 0:01:40]} 22. Be4 {[%clk 0:02:01]}  R3f6 {[%clk 0:01:37]} 23. Bxg6 {[%clk 0:02:01]}  Rxg6 {[%clk 0:01:36]} 24. Ne4 {[%clk 0:02:02]}  Nf6 {[%clk 0:01:36]} 25. c5 {[%clk 0:01:48]}  Nxe4 {[%clk 0:01:32]} 26. Qxe4 {[%clk 0:01:49]}  Qd7 {[%clk 0:01:09]} 27. Qg2 {[%clk 0:01:35]}  e4 {[%clk 0:01:01]} 28. Qxe4 {[%clk 0:01:18]}  Qxh3 {[%clk 0:01:00]} 29. c6 {[%clk 0:01:11]}  bxc6 {[%clk 0:00:53]} 30. dxc6 {[%clk 0:01:11]}  Re6 {[%clk 0:00:15]} 31. Qg2 {[%clk 0:01:04]}  Qf5 {[%clk 0:00:14]} 32. Rbc1 {[%clk 0:01:00]}  d5 {[%clk 0:00:12]} 33. c7 {[%clk 0:00:59]}  Rc8 {[%clk 0:00:12]} 34. Rc5 {[%clk 0:00:57]}  Re5 {[%clk 0:00:12]} 35. Qf1 {[%clk 0:00:39]}  Qe6 {[%clk 0:00:11]} 36. Rc6 {[%clk 0:00:39]}  Qd7 {[%clk 0:00:11]} 37. Qxa6 {[%clk 0:00:39]}  d4 {[%clk 0:00:09]} 38. Qc4+ {[%clk 0:00:39]}  Kh8 {[%clk 0:00:09]} 39. b5 {[%clk 0:00:39]}  d3 {[%clk 0:00:09]} 40. Qc3 {[%clk 0:00:30]}  d2 {[%clk 0:00:08]} 41. Qxe5 {[%clk 0:00:30]}  dxc1=Q+ {[%clk 0:00:06]} 42. Rxc1 {[%clk 0:00:30]}  h6 {[%clk 0:00:06]} 43. b6 {[%clk 0:00:30]}  Qd2 {[%clk 0:00:03]} 44. Qe3 {[%clk 0:00:29]}  Qb4 {[%clk 0:00:03]} 45. Qc5 {[%clk 0:00:23]}  Qb2 {[%clk 0:00:02]} 46. Qc6 {[%clk 0:00:22]}  Rf8 {[%clk 0:00:02]} 47. Rf1 {[%clk 0:00:17]} 1-0


[Site "https://www.chess.com"]

[Event "Titled Tuesday Blitz June 22 2021"]
[White "Bortnyk, Olexandr"]
[Black "Nakamura, Hikaru"]
[WhiteFideId "14120828"]
[BlackFideId "2016192"]
[WhiteElo "2723"]
[BlackElo "2900"]
[Result "1-0"]
[Round "11"]
[TimeControl "180+1"]
[Date "2021.06.22"]
[WhiteClock "0:00:07"]
[BlackClock "0:00:14"]

1. e4 {[%clk 0:03:00]}  c5 {[%clk 0:02:57]} 2. c3 {[%clk 0:03:00]}  d5 {[%clk 0:02:56]} 3. exd5 {[%clk 0:03:01]}  Qxd5 {[%clk 0:02:57]} 4. d4 {[%clk 0:03:02]}  e6 {[%clk 0:02:58]} 5. Be3 {[%clk 0:03:01]}  cxd4 {[%clk 0:02:57]} 6. cxd4 {[%clk 0:03:02]}  Nf6 {[%clk 0:02:58]} 7. Nc3 {[%clk 0:03:02]}  Qd8 {[%clk 0:02:58]} 8. Nf3 {[%clk 0:03:03]}  Be7 {[%clk 0:02:58]} 9. Bd3 {[%clk 0:03:03]}  O-O {[%clk 0:02:59]} 10. O-O {[%clk 0:03:03]}  b6 {[%clk 0:02:59]} 11. Qe2 {[%clk 0:03:02]}  Bb7 {[%clk 0:03:00]} 12. Rad1 {[%clk 0:03:03]}  Nc6 {[%clk 0:02:59]} 13. a3 {[%clk 0:03:03]}  Rc8 {[%clk 0:02:55]} 14. Bb1 {[%clk 0:03:03]}  Na5 {[%clk 0:02:50]} 15. Bg5 {[%clk 0:02:58]}  Nd5 {[%clk 0:02:40]} 16. Qd3 {[%clk 0:02:37]}  g6 {[%clk 0:02:23]} 17. Bh6 {[%clk 0:02:36]}  Nxc3 {[%clk 0:02:17]} 18. bxc3 {[%clk 0:02:30]}  Re8 {[%clk 0:02:18]} 19. Ne5 {[%clk 0:02:26]}  Qd5 {[%clk 0:02:15]} 20. Qg3 {[%clk 0:01:40]}  Rxc3 {[%clk 0:02:09]} 21. f3 {[%clk 0:01:40]}  Bd6 {[%clk 0:01:49]} 22. Qg5 {[%clk 0:01:06]}  Be7 {[%clk 0:01:41]} 23. Qg3 {[%clk 0:01:04]}  Bd6 {[%clk 0:01:26]} 24. Qg5 {[%clk 0:00:42]}  Bf8 {[%clk 0:01:03]} 25. Qf6 {[%clk 0:00:25]}  Rc7 {[%clk 0:01:03]} 26. Bxf8 {[%clk 0:00:16]}  Rxf8 {[%clk 0:01:02]} 27. Ng4 {[%clk 0:00:17]}  Rd8 {[%clk 0:00:32]} 28. Nh6+ {[%clk 0:00:09]}  Kf8 {[%clk 0:00:32]} 29. Rfe1 {[%clk 0:00:09]}  Ke8 {[%clk 0:00:21]} 30. Nxf7 {[%clk 0:00:09]}  Rxf7 {[%clk 0:00:14]} 31. Rxe6+ {[%clk 0:00:09]}  Kd7 {[%clk 0:00:15]} 32. Qxf7+ {[%clk 0:00:08]}  Kc8 {[%clk 0:00:16]} 33. Be4 {[%clk 0:00:08]}  Qd7 {[%clk 0:00:14]} 34. Re7 {[%clk 0:00:07]} 1-0


[Site "https://www.chess.com"]

[Event "Titled Tuesday Blitz June 22 2021"]
[White "Wagner, Dinara"]
[Black "Molina, Roberto Junio Brito"]
[WhiteFideId "24157570"]
[BlackFideId "2109450"]
[WhiteElo "2260"]
[BlackElo "2402"]
[Result "1/2-1/2"]
[Round "11"]
[TimeControl "180+1"]
[Date "2021.06.22"]
[WhiteClock "0:00:14"]
[BlackClock "0:00:40"]

1. d4 {[%clk 0:02:57]}  c6 {[%clk 0:03:00]} 2. c4 {[%clk 0:02:56]}  d5 {[%clk 0:03:01]} 3. Nf3 {[%clk 0:02:54]}  Nf6 {[%clk 0:03:01]} 4. g3 {[%clk 0:02:55]}  dxc4 {[%clk 0:03:01]} 5. Bg2 {[%clk 0:02:52]}  b5 {[%clk 0:03:01]} 6. a4 {[%clk 0:02:49]}  Bb7 {[%clk 0:03:01]} 7. Ne5 {[%clk 0:02:48]}  a6 {[%clk 0:03:00]} 8. b3 {[%clk 0:02:46]}  cxb3 {[%clk 0:03:00]} 9. Qxb3 {[%clk 0:02:46]}  e6 {[%clk 0:03:00]} 10. O-O {[%clk 0:02:45]}  Be7 {[%clk 0:02:58]} 11. axb5 {[%clk 0:02:45]}  axb5 {[%clk 0:02:58]} 12. Rxa8 {[%clk 0:02:45]}  Bxa8 {[%clk 0:02:59]} 13. Qa2 {[%clk 0:02:45]}  Bb7 {[%clk 0:02:55]} 14. Qa7 {[%clk 0:02:38]}  Qc8 {[%clk 0:02:44]} 15. Na3 {[%clk 0:02:31]}  Nd5 {[%clk 0:02:37]} 16. Bb2 {[%clk 0:02:19]}  O-O {[%clk 0:02:31]} 17. Rc1 {[%clk 0:02:19]}  b4 {[%clk 0:02:20]} 18. Nac4 {[%clk 0:02:13]}  Nd7 {[%clk 0:00:59]} 19. Nxd7 {[%clk 0:01:30]}  Qxd7 {[%clk 0:01:00]} 20. Na5 {[%clk 0:01:30]}  Bc8 {[%clk 0:00:59]} 21. Qxd7 {[%clk 0:01:19]}  Bxd7 {[%clk 0:01:00]} 22. Nxc6 {[%clk 0:01:18]}  Bd6 {[%clk 0:00:53]} 23. e4 {[%clk 0:01:16]}  Nc3 {[%clk 0:00:47]} 24. Bxc3 {[%clk 0:01:07]}  bxc3 {[%clk 0:00:42]} 25. Rxc3 {[%clk 0:01:04]}  Ra8 {[%clk 0:00:28]} 26. e5 {[%clk 0:00:51]}  Ra1+ {[%clk 0:00:27]} 27. Bf1 {[%clk 0:00:52]}  Bf8 {[%clk 0:00:26]} 28. h4 {[%clk 0:00:40]}  g6 {[%clk 0:00:25]} 29. Kg2 {[%clk 0:00:35]}  Rd1 {[%clk 0:00:23]} 30. Be2 {[%clk 0:00:34]}  Rd2 {[%clk 0:00:23]} 31. Bf3 {[%clk 0:00:21]}  Bxc6 {[%clk 0:00:20]} 32. Bxc6 {[%clk 0:00:21]}  Rxd4 {[%clk 0:00:20]} 33. Rf3 {[%clk 0:00:21]}  Rd8 {[%clk 0:00:20]} 34. Rb3 {[%clk 0:00:20]}  Bg7 {[%clk 0:00:20]} 35. f4 {[%clk 0:00:20]}  Rc8 {[%clk 0:00:18]} 36. Be4 {[%clk 0:00:19]}  Bf8 {[%clk 0:00:18]} 37. Rb7 {[%clk 0:00:20]}  Re8 {[%clk 0:00:18]} 38. Bc6 {[%clk 0:00:19]}  Re7 {[%clk 0:00:18]} 39. Rb8 {[%clk 0:00:19]}  Kg7 {[%clk 0:00:19]} 40. Kf3 {[%clk 0:00:19]}  Rc7 {[%clk 0:00:19]} 41. Be8 {[%clk 0:00:19]}  h5 {[%clk 0:00:20]} 42. Rb5 {[%clk 0:00:18]}  Bc5 {[%clk 0:00:20]} 43. Ke4 {[%clk 0:00:17]}  Bf2 {[%clk 0:00:20]} 44. Kf3 {[%clk 0:00:17]}  Be1 {[%clk 0:00:20]} 45. Rb3 {[%clk 0:00:15]}  Bc3 {[%clk 0:00:19]} 46. Bb5 {[%clk 0:00:13]}  Bd4 {[%clk 0:00:19]} 47. Bd3 {[%clk 0:00:12]}  Bc5 {[%clk 0:00:19]} 48. Be4 {[%clk 0:00:10]}  Ra7 {[%clk 0:00:18]} 49. Bc6 {[%clk 0:00:07]}  Ra6 {[%clk 0:00:18]} 50. Be8 {[%clk 0:00:07]}  Ra8 {[%clk 0:00:18]} 51. Bc6 {[%clk 0:00:07]}  Rc8 {[%clk 0:00:18]} 52. Be4 {[%clk 0:00:06]}  Rd8 {[%clk 0:00:18]} 53. Bc6 {[%clk 0:00:06]}  Kf8 {[%clk 0:00:18]} 54. Rb7 {[%clk 0:00:06]}  Be7 {[%clk 0:00:19]} 55. Be4 {[%clk 0:00:05]}  Rc8 {[%clk 0:00:18]} 56. Ra7 {[%clk 0:00:05]}  Rc3+ {[%clk 0:00:17]} 57. Ke2 {[%clk 0:00:05]}  Bc5 {[%clk 0:00:18]} 58. Ra8+ {[%clk 0:00:04]}  Kg7 {[%clk 0:00:18]} 59. Bf3 {[%clk 0:00:04]}  Re3+ {[%clk 0:00:18]} 60. Kf2 {[%clk 0:00:04]}  Rb3+ {[%clk 0:00:16]} 61. Kg2 {[%clk 0:00:04]}  Rb2+ {[%clk 0:00:16]} 62. Kh3 {[%clk 0:00:04]}  Rb3 {[%clk 0:00:15]} 63. Kg2 {[%clk 0:00:03]}  Rb2+ {[%clk 0:00:15]} 64. Kh3 {[%clk 0:00:04]}  Bg1 {[%clk 0:00:15]} 65. Bg2 {[%clk 0:00:04]}  Bf2 {[%clk 0:00:15]} 66. Ra3 {[%clk 0:00:04]}  Rb8 {[%clk 0:00:14]} 67. Rf3 {[%clk 0:00:04]}  Bd4 {[%clk 0:00:14]} 68. Bf1 {[%clk 0:00:04]}  Rc8 {[%clk 0:00:14]} 69. Kg2 {[%clk 0:00:04]}  Rc7 {[%clk 0:00:15]} 70. Rd3 {[%clk 0:00:02]}  Bc3 {[%clk 0:00:15]} 71. Be2 {[%clk 0:00:02]}  Kf8 {[%clk 0:00:15]} 72. Kf3 {[%clk 0:00:03]}  Ke7 {[%clk 0:00:16]} 73. Rd1 {[%clk 0:00:03]}  Ke8 {[%clk 0:00:16]} 74. Bd3 {[%clk 0:00:03]}  Kf8 {[%clk 0:00:16]} 75. Bb5 {[%clk 0:00:04]}  Rc5 {[%clk 0:00:16]} 76. Be2 {[%clk 0:00:04]}  Kg7 {[%clk 0:00:16]} 77. Bd3 {[%clk 0:00:05]}  f6 {[%clk 0:00:16]} 78. exf6+ {[%clk 0:00:04]}  Kxf6 {[%clk 0:00:17]} 79. Be2 {[%clk 0:00:05]}  e5 {[%clk 0:00:16]} 80. fxe5+ {[%clk 0:00:04]}  Bxe5 {[%clk 0:00:16]} 81. Bd3 {[%clk 0:00:05]}  Rc3 {[%clk 0:00:16]} 82. Kg2 {[%clk 0:00:05]}  Ra3 {[%clk 0:00:15]} 83. Rf1+ {[%clk 0:00:05]}  Kg7 {[%clk 0:00:16]} 84. Rf3 {[%clk 0:00:05]}  Ra2+ {[%clk 0:00:16]} 85. Kh3 {[%clk 0:00:06]}  Rd2 {[%clk 0:00:16]} 86. Re3 {[%clk 0:00:06]}  Bf6 {[%clk 0:00:16]} 87. Rf3 {[%clk 0:00:06]}  Rb2 {[%clk 0:00:15]} 88. Be4 {[%clk 0:00:07]}  Rb6 {[%clk 0:00:16]} 89. Rd3 {[%clk 0:00:07]}  Re6 {[%clk 0:00:16]} 90. Rd7+ {[%clk 0:00:07]}  Kh6 {[%clk 0:00:16]} 91. Bf3 {[%clk 0:00:08]}  Re3 {[%clk 0:00:16]} 92. Kg2 {[%clk 0:00:07]}  Be5 {[%clk 0:00:16]} 93. Rd8 {[%clk 0:00:06]}  Kh7 {[%clk 0:00:16]} 94. Rd7+ {[%clk 0:00:07]}  Kh6 {[%clk 0:00:15]} 95. Rb7 {[%clk 0:00:07]}  Rc3 {[%clk 0:00:14]} 96. Rd7 {[%clk 0:00:07]}  Rc2+ {[%clk 0:00:14]} 97. Kh3 {[%clk 0:00:07]}  Rc3 {[%clk 0:00:14]} 98. Kg2 {[%clk 0:00:07]}  Bf6 {[%clk 0:00:14]} 99. Rd6 {[%clk 0:00:07]}  Rc2+ {[%clk 0:00:14]} 100. Kh3 {[%clk 0:00:06]}  Kg7 {[%clk 0:00:14]} 101. Rd7+ {[%clk 0:00:06]}  Kf8 {[%clk 0:00:14]} 102. Rd6 {[%clk 0:00:06]}  Ke7 {[%clk 0:00:14]} 103. Ra6 {[%clk 0:00:06]}  Rc7 {[%clk 0:00:14]} 104. Rc6 {[%clk 0:00:06]}  Rd7 {[%clk 0:00:14]} 105. Ra6 {[%clk 0:00:06]}  Kf7 {[%clk 0:00:14]} 106. Rc6 {[%clk 0:00:06]}  Be7 {[%clk 0:00:14]} 107. Ra6 {[%clk 0:00:06]}  Bd6 {[%clk 0:00:14]} 108. Be4 {[%clk 0:00:06]}  Kf6 {[%clk 0:00:13]} 109. Rb6 {[%clk 0:00:05]}  Rd8 {[%clk 0:00:13]} 110. Rc6 {[%clk 0:00:05]}  Kg7 {[%clk 0:00:13]} 111. Ra6 {[%clk 0:00:05]}  Bf8 {[%clk 0:00:13]} 112. Rc6 {[%clk 0:00:05]}  Rd6 {[%clk 0:00:13]} 113. Rxd6 {[%clk 0:00:05]}  Bxd6 {[%clk 0:00:14]} 114. Kg2 {[%clk 0:00:06]}  Kf6 {[%clk 0:00:14]} 115. Kf3 {[%clk 0:00:07]}  Be7 {[%clk 0:00:14]} 116. g4 {[%clk 0:00:07]}  hxg4+ {[%clk 0:00:14]} 117. Kxg4 {[%clk 0:00:08]}  Kg7 {[%clk 0:00:14]} 118. h5 {[%clk 0:00:08]}  g5 {[%clk 0:00:14]} 119. Bf5 {[%clk 0:00:08]}  Kh6 {[%clk 0:00:15]} 120. Be4 {[%clk 0:00:09]}  Bc5 {[%clk 0:00:16]} 121. Bf5 {[%clk 0:00:09]}  Bb6 {[%clk 0:00:17]} 122. Be4 {[%clk 0:00:10]}  Ba5 {[%clk 0:00:18]} 123. Bf5 {[%clk 0:00:10]}  Bb4 {[%clk 0:00:19]} 124. Be4 {[%clk 0:00:11]}  Ba3 {[%clk 0:00:19]} 125. Bf5 {[%clk 0:00:12]}  Bb2 {[%clk 0:00:20]} 126. Be4 {[%clk 0:00:12]}  Ba1 {[%clk 0:00:21]} 127. Bf5 {[%clk 0:00:08]}  Bb2 {[%clk 0:00:22]} 128. Be4 {[%clk 0:00:08]}  Bc3 {[%clk 0:00:23]} 129. Bf5 {[%clk 0:00:09]}  Bb4 {[%clk 0:00:24]} 130. Be4 {[%clk 0:00:09]}  Be7 {[%clk 0:00:25]} 131. Bf5 {[%clk 0:00:10]}  Bf8 {[%clk 0:00:26]} 132. Be4 {[%clk 0:00:11]}  Ba3 {[%clk 0:00:27]} 133. Bf5 {[%clk 0:00:11]}  Bc1 {[%clk 0:00:28]} 134. Be4 {[%clk 0:00:12]}  Kg7 {[%clk 0:00:28]} 135. Bf5 {[%clk 0:00:13]}  Kf6 {[%clk 0:00:29]} 136. Be4 {[%clk 0:00:12]}  Kf7 {[%clk 0:00:29]} 137. Bg6+ {[%clk 0:00:12]}  Kg7 {[%clk 0:00:29]} 138. Bc2 {[%clk 0:00:13]}  Kh6 {[%clk 0:00:29]} 139. Bb1 {[%clk 0:00:13]}  Bf4 {[%clk 0:00:30]} 140. Bc2 {[%clk 0:00:13]}  Kg7 {[%clk 0:00:31]} 141. Bb1 {[%clk 0:00:14]}  Kf8 {[%clk 0:00:32]} 142. Bc2 {[%clk 0:00:14]}  Ke7 {[%clk 0:00:33]} 143. h6 {[%clk 0:00:14]}  Kf7 {[%clk 0:00:33]} 144. h7 {[%clk 0:00:14]}  Kg7 {[%clk 0:00:33]} 145. Bd3 {[%clk 0:00:15]}  Bc1 {[%clk 0:00:34]} 146. Be4 {[%clk 0:00:15]}  Kh8 {[%clk 0:00:35]} 147. Bf5 {[%clk 0:00:15]}  Bd2 {[%clk 0:00:36]} 148. Be4 {[%clk 0:00:16]}  Bc1 {[%clk 0:00:36]} 149. Bf5 {[%clk 0:00:16]}  Bf4 {[%clk 0:00:37]} 150. Be4 {[%clk 0:00:16]}  Kg7 {[%clk 0:00:38]} 151. Bf5 {[%clk 0:00:17]}  Be3 {[%clk 0:00:38]} 152. Be4 {[%clk 0:00:18]}  Bd2 {[%clk 0:00:39]} 153. Bd3 {[%clk 0:00:14]}  Bc1 {[%clk 0:00:40]} 154. Be4 {[%clk 0:00:14]}  Kh8 {[%clk 0:00:40]} 1/2-1/2


[Site "https://www.chess.com"]

[Event "Titled Tuesday Blitz June 22 2021"]
[White "Gabrielian, Artur"]
[Black "Timmermans, Mark"]
[WhiteFideId "4131002"]
[BlackFideId "1026399"]
[WhiteElo "2539"]
[BlackElo "2460"]
[Result "1/2-1/2"]
[Round "11"]
[TimeControl "180+1"]
[Date "2021.06.22"]
[WhiteClock "0:00:10"]
[BlackClock "0:00:22"]

1. e4 {[%clk 0:03:00]}  e5 {[%clk 0:02:54]} 2. Nc3 {[%clk 0:03:00]}  Nf6 {[%clk 0:02:52]} 3. g3 {[%clk 0:03:00]}  d5 {[%clk 0:02:50]} 4. exd5 {[%clk 0:03:01]}  Nxd5 {[%clk 0:02:51]} 5. Bg2 {[%clk 0:03:01]}  Nxc3 {[%clk 0:02:52]} 6. bxc3 {[%clk 0:03:02]}  Bd6 {[%clk 0:02:52]} 7. Nf3 {[%clk 0:03:02]}  O-O {[%clk 0:02:53]} 8. O-O {[%clk 0:03:02]}  Nc6 {[%clk 0:02:54]} 9. Rb1 {[%clk 0:03:02]}  Rb8 {[%clk 0:02:54]} 10. d4 {[%clk 0:03:00]}  exd4 {[%clk 0:02:53]} 11. cxd4 {[%clk 0:03:00]}  Bg4 {[%clk 0:02:53]} 12. c3 {[%clk 0:02:59]}  Qd7 {[%clk 0:02:49]} 13. Be3 {[%clk 0:02:54]}  b5 {[%clk 0:02:47]} 14. Re1 {[%clk 0:02:45]}  Na5 {[%clk 0:02:44]} 15. d5 {[%clk 0:02:25]}  a6 {[%clk 0:02:39]} 16. Qd4 {[%clk 0:02:23]}  Nc4 {[%clk 0:02:37]} 17. Bf4 {[%clk 0:02:20]}  Rfe8 {[%clk 0:02:28]} 18. a4 {[%clk 0:02:16]}  Na3 {[%clk 0:02:25]} 19. Rxe8+ {[%clk 0:02:07]}  Rxe8 {[%clk 0:02:26]} 20. Rc1 {[%clk 0:02:05]}  bxa4 {[%clk 0:02:26]} 21. Bxd6 {[%clk 0:01:51]}  cxd6 {[%clk 0:02:07]} 22. c4 {[%clk 0:01:51]}  Bxf3 {[%clk 0:01:29]} 23. Bxf3 {[%clk 0:01:50]}  Qc7 {[%clk 0:01:29]} 24. Kg2 {[%clk 0:01:00]}  Qc5 {[%clk 0:01:24]} 25. Qxc5 {[%clk 0:00:40]}  dxc5 {[%clk 0:01:25]} 26. Ra1 {[%clk 0:00:27]}  Nxc4 {[%clk 0:01:24]} 27. Rxa4 {[%clk 0:00:26]}  Ne5 {[%clk 0:01:17]} 28. Rxa6 {[%clk 0:00:25]}  Nxf3 {[%clk 0:01:17]} 29. Kxf3 {[%clk 0:00:25]}  Kf8 {[%clk 0:01:11]} 30. Rc6 {[%clk 0:00:25]}  Re5 {[%clk 0:01:10]} 31. Rxc5 {[%clk 0:00:22]}  Ke7 {[%clk 0:01:10]} 32. Kf4 {[%clk 0:00:21]}  Kd6 {[%clk 0:01:07]} 33. Rc6+ {[%clk 0:00:16]}  Kxd5 {[%clk 0:01:08]} 34. Rc7 {[%clk 0:00:16]}  Ke6 {[%clk 0:01:04]} 35. Rc6+ {[%clk 0:00:13]}  Kd5 {[%clk 0:01:03]} 36. Rc5+ {[%clk 0:00:13]}  Kxc5 {[%clk 0:01:03]} 37. Kxe5 {[%clk 0:00:14]}  Kc6 {[%clk 0:01:01]} 38. g4 {[%clk 0:00:14]}  Kd7 {[%clk 0:01:00]} 39. h4 {[%clk 0:00:14]}  Ke7 {[%clk 0:01:00]} 40. f4 {[%clk 0:00:14]}  f6+ {[%clk 0:00:56]} 41. Kd5 {[%clk 0:00:14]}  Kd7 {[%clk 0:00:57]} 42. h5 {[%clk 0:00:14]}  f5 {[%clk 0:00:44]} 43. gxf5 {[%clk 0:00:12]}  Ke7 {[%clk 0:00:45]} 44. Ke5 {[%clk 0:00:11]}  Kf7 {[%clk 0:00:45]} 45. f6 {[%clk 0:00:11]}  g6 {[%clk 0:00:34]} 46. h6 {[%clk 0:00:10]}  Kf8 {[%clk 0:00:30]} 47. Ke6 {[%clk 0:00:09]}  Ke8 {[%clk 0:00:29]} 48. Kd5 {[%clk 0:00:07]}  Kf7 {[%clk 0:00:26]} 49. Ke5 {[%clk 0:00:08]}  Kf8 {[%clk 0:00:26]} 50. Ke6 {[%clk 0:00:08]}  Ke8 {[%clk 0:00:27]} 51. f7+ {[%clk 0:00:07]}  Kf8 {[%clk 0:00:27]} 52. Kf6 {[%clk 0:00:08]}  g5 {[%clk 0:00:27]} 53. Kxg5 {[%clk 0:00:08]}  Kxf7 {[%clk 0:00:20]} 54. Kf5 {[%clk 0:00:08]}  Ke7 {[%clk 0:00:20]} 55. Ke5 {[%clk 0:00:08]}  Kf7 {[%clk 0:00:16]} 56. f5 {[%clk 0:00:09]}  Ke7 {[%clk 0:00:15]} 57. Ke4 {[%clk 0:00:07]}  Kf6 {[%clk 0:00:15]} 58. Kf4 {[%clk 0:00:08]}  Kf7 {[%clk 0:00:16]} 59. Ke3 {[%clk 0:00:08]}  Kf6 {[%clk 0:00:15]} 60. Ke4 {[%clk 0:00:08]}  Kf7 {[%clk 0:00:15]} 61. Ke5 {[%clk 0:00:08]}  Ke7 {[%clk 0:00:16]} 62. f6+ {[%clk 0:00:07]}  Kf7 {[%clk 0:00:16]} 63. Kf5 {[%clk 0:00:06]}  Kf8 {[%clk 0:00:17]} 64. Ke6 {[%clk 0:00:07]}  Ke8 {[%clk 0:00:17]} 65. Ke5 {[%clk 0:00:05]}  Kf7 {[%clk 0:00:18]} 66. Kf5 {[%clk 0:00:06]}  Kf8 {[%clk 0:00:18]} 67. Kg4 {[%clk 0:00:06]}  Kf7 {[%clk 0:00:19]} 68. Kg5 {[%clk 0:00:07]}  Kf8 {[%clk 0:00:19]} 69. Kf5 {[%clk 0:00:07]}  Kf7 {[%clk 0:00:20]} 70. Ke5 {[%clk 0:00:07]}  Kf8 {[%clk 0:00:20]} 71. Ke6 {[%clk 0:00:08]}  Ke8 {[%clk 0:00:20]} 72. Kd6 {[%clk 0:00:09]}  Kf7 {[%clk 0:00:21]} 73. Ke5 {[%clk 0:00:09]}  Kf8 {[%clk 0:00:22]} 74. Kd4 {[%clk 0:00:09]}  Kf7 {[%clk 0:00:22]} 75. Ke5 {[%clk 0:00:10]} 1/2-1/2


[Site "https://www.chess.com"]